Cogmind - Beta 13 @@@ ROGUE MODE // 2024.07.31 @ 00:11:38 Player: jagoly Result: Destroyed by S-10 Pest with Light Assault Rifle Performance ------------- Evolutions (0) 0 Regions Visited (4) 800 Robots Destroyed (33) 165 Value Destroyed (587) 587 Prototype IDs (17) 340 Alien Tech Used (0) 0 Bonus (7) 7 TOTAL SCORE: 1899 Bonus ------- Follower Combat Kills 7 Cogmind --------- Core Integrity 0/250 Matter 285/300 Energy 264/265 System Corruption 6% Temperature Cool (36) Movement Treading (160) Location -9/Mines Parts ------- > --- POWER (1) -------- Improved Ion Engine > --- PROPULSION (2) --- Light Treads Light Treads > --- UTILITY (2) ------ Heat Sink (fused) Large Storage Unit > --- WEAPON (2) ------- Beam Cannon > --- INVENTORY (15) --- Improved Ion Engine Improved Ion Engine Light Treads Light Treads Heat Sink High-capacity Storage Unit Signal Interpreter Hardened Light Armor Plating Beam Cannon Beam Cannon Assault Rifle Grenade Launcher Datajack Peak State ------------ > --- POWER ------------ Improved Ion Engine > --- PROPULSION ------- Light Treads Light Treads > --- UTILITY ---------- Heat Sink Large Storage Unit > --- WEAPON ----------- Beam Cannon Beam Cannon > --- INVENTORY -------- Light Treads Light Treads Light Treads Light Treads Heat Sink Large Storage Unit Signal Interpreter Medium Laser Beam Cannon Beam Cannon Assault Rifle Grenade Launcher Datajack [Rating: 9] Favorites ----------- Power Improved Ion Engine Engine Improved Ion Engine Propulsion Light Treads Treads Light Treads Leg Aluminum Leg Utility Large Storage Unit Device Heat Sink Storage Large Storage Unit Processor Transport Network Coupler Weapon Beam Cannon Energy Gun Medium Laser Energy Cannon Beam Cannon Ballistic Gun Assault Rifle Launcher Grenade Launcher Special Melee Weapon Datajack Build | -11 -10 -10 -10 -9 ------- Run | Yrd Mat Min Exi Min Slots Evolved . | . . . . . Power . | . . . . . Propulsion . | . . . . . Utility . | . . . . . Weapon . | . . . . . Parts Attached 31 | 6 18 3 4 . Power 3 | 1 2 . . . Engine 3 | 1 2 . . . Core . | . . . . . Reactor . | . . . . . Propulsion 8 | 2 5 1 . . Treads 5 | . 4 1 . . Leg 3 | 2 1 . . . Wheel . | . . . . . Hover . | . . . . . Flight . | . . . . . Utility 7 | 1 5 . 1 . Device 3 | . 3 . . . Storage 3 | 1 1 . 1 . Processor 1 | . 1 . . . Hackware . | . . . . . Protection . | . . . . . Artifact . | . . . . . Weapon 13 | 2 6 2 3 . Energy Gun 1 | . 1 . . . Energy Cannon 6 | . 3 1 2 . Ballistic Gun 3 | 2 1 . . . Ballistic Cannon . | . . . . . Launcher 2 | . 1 1 . . Special Weapon . | . . . . . Impact Weapon . | . . . . . Slashing Weapon . | . . . . . Piercing Weapon . | . . . . . Special Melee Weapon 1 | . . . 1 . Unidentified Prototypes . | . . . . . Parts Lost 2 | . . 1 . 1 Power . | . . . . . Propulsion 1 | . . 1 . . Utility . | . . . . . Weapon 1 | . . . . 1 Highest Loss Streak 1 | . . 1 . 1 To Critical Strikes . | . . . . . Average Slot Usage (%) 96 | . 99 99 85 . Engine 14 | . 14 14 14 . Treads 25 | . 23 27 28 . Leg 2 | . 4 . . . Device 13 | . 13 14 14 . Storage 14 | . 14 14 14 . Energy Cannon 17 | . 20 27 1 . Ballistic Gun 3 | . 5 . . . Special Melee Weapon 3 | . . . 13 . Naked Turns . | . . . . . Heaviest Build 34 | 11 34 34 34 . Greatest Support 40 | 20 40 40 40 . Greatest Overweight (x) 1 | 1 1 . . . Average Overweight (x) . | . . . . . Largest Inventory Capacity 15 | 8 15 15 15 15 Average Capacity 14 | 7 13 15 15 15 Most Carried 15 | 3 15 15 15 13 Average Carried 13 | 1 12 14 14 13 Final Capacity 15 | 8 15 15 15 15 Final Carried 15 | 3 15 14 13 13 Class Distribution -------------------- 100% | Mutant Dominant Class ---------------- Mutant | -10/Materials Mutant | -10/Mines Mutant | -10/Exiles Mutant | -9/Mines Resources | -11 -10 -10 -10 -9 ----------- Run | Yrd Mat Min Exi Min Matter Collected 749 | 238 333 124 54 . Remotely . | . . . . . Salvage Created 875 | . 691 160 . 24 Parts 70 | . 57 8 . 5 Haulers Intercepted 2 | . 2 . . . Recyclers Shooed . | . . . . . Parts Field Recycled . | . . . . . Retrieved Matter . | . . . . . Parts Self-Destructed . | . . . . . Prevented . | . . . . . Kills | -11 -10 -10 -10 -9 ------- Run | Yrd Mat Min Exi Min Combat Hostiles Destroyed 38 | . 15 21 . 2 Guns 7 | . 7 . . . Cannons 12 | . 5 5 . 2 AOE 19 | . 3 16 . . Classes Destroyed 11 | . 7 4 . . Worker 3 | . 3 . . . Builder 1 | . 1 . . . Tunneler 1 | . . 1 . . Hauler 2 | . 2 . . . Recycler 1 | . . 1 . . Operator 2 | . 2 . . . Watcher 3 | . 3 . . . Swarmer 10 | . 6 2 . 2 Grunt 9 | . 9 . . . Demolisher 1 | . . 1 . . Assembled 18 | . . 18 . . Best Kill Streak 20 | . 5 20 . 2 Combat Bots Only 19 | . 5 19 . 2 Max Kills in Single Turn 5 | . 5 4 . 1 Gunslinging . | . . . . . Exploded 4 | . 3 4 . . Melee . | . . . . . Uniques/NPCs Destroyed . | . . . . . Combat | -11 -10 -10 -10 -9 -------- Run | Yrd Mat Min Exi Min Hostile Shots Fired 97 | . 35 52 . 10 Missed 25 | . 6 19 . . Damage Taken 1002 | . 317 607 . 78 Core 251 | . 54 189 . 8 Absorbed by Shields . | . . . . . Core Remaining (%) 100 | 100 . . . . Volleys Fired 66 | . 48 15 . 3 Largest 2 | . 2 2 . 2 Hottest 120 | . 120 120 . 120 Shots Fired 123 | . 95 24 . 4 Gun 65 | . 65 . . . Cannon 51 | . 29 18 . 4 Launcher 7 | . 1 6 . . Special . | . . . . . Kinetic 57 | . 57 . . . Thermal 59 | . 37 18 . 4 Explosive 7 | . 1 6 . . Electromagnetic . | . . . . . Robot Hit Streak 6 | . 6 4 . 1 Robot Miss Streak 3 | . 3 2 . 2 Penetration Max . | . . . . . Secondary Targets 1 | . 1 . . . Max Gunslinging Chain 1 | . 1 . . . Shots Hit Robots 75 | . 51 15 8 1 Core Hits 82 | . 37 43 . 2 Critical Kills . | . . . . . Critical Parts Destroyed . | . . . . . Critical Strikes . | . . . . . Melee Attacks 8 | . . . 8 . Impact . | . . . . . Slashing . | . . . . . Piercing . | . . . . . Sneak Attacks 8 | . . . 8 . Combat Hostiles . | . . . . . Follow-up Attacks . | . . . . . Damage Inflicted 2203 | . 920 1248 . 35 Guns 435 | . 435 . . . Cannons 493 | . 262 196 . 35 Explosions 1275 | . 223 1052 . . Melee . | . . . . . Ramming . | . . . . . Kinetic 374 | . 374 . . . Thermal 554 | . 323 196 . 35 Explosive 1275 | . 223 1052 . . Electromagnetic . | . . . . . Impact . | . . . . . Slashing . | . . . . . Piercing . | . . . . . Highest Corruption 6 | . 6 6 6 6 Average Corruption 5 | . 2 6 6 6 Corruption Purged . | . . . . . Corruption Blocked . | . . . . . Effects 38 | . 6 16 15 1 Message Errors 7 | . 1 1 5 . Matter Fused 10 | . . 7 3 . Heat Flow Errors 5 | . 1 2 2 . Energy Discharges 6 | . 1 3 2 . Parts Fused 1 | . . . 1 . Data Loss (minor) 7 | . 2 3 1 1 Misfires 1 | . 1 . . . Alerts 1 | . . . 1 . Overload Shots . | . . . . . Overflow Damage 13 | . . 13 . . Projectiles . | . . . . . Explosions 13 | . . 13 . . Melee . | . . . . . Knockbacks . | . . . . . Impact . | . . . . . Kinetic . | . . . . . Secondary . | . . . . . Self-Inflicted Damage 8 | . . 8 . . Shots 1 | . . 1 . . Rammed . | . . . . . Targets Rammed . | . . . . . Kicked . | . . . . . Crushed . | . . . . . Highest Temperature 230 | . 202 186 230 36 Average Temperature 46 | . 34 56 104 28 Received Heat Transfer 176 | . 156 20 . . Siege Activations . | . . . . . Robots Corrupted . | . . . . . Combat Hostiles . | . . . . . Parts Fried . | . . . . . Impact Corruptions . | . . . . . Robots Melted . | . . . . . Combat Hostiles . | . . . . . Parts Melted 2 | . 1 . . 1 Heat Transferred 1221 | . 740 407 . 74 Parts Sabotaged . | . . . . . Parts Stolen . | . . . . . Parts Stripped . | . . . . . Power Chain Reactions . | . . . . . Alert | -11 -10 -10 -10 -9 ------- Run | Yrd Mat Min Exi Min Peak Influence 336 | . 336 161 . 40 Initial 70 | . . 70 . . Average 133 | . 173 46 . 31 Maximum Alert Level 1 | . 1 . . . Low Security (%) 77 | 100 67 100 . 100 Level 1 22 | . 32 . . . Level 2 . | . . . . . Level 3 . | . . . . . Level 4 . | . . . . . Level 5 . | . . . . . High Security . | . . . . . Max Security . | . . . . . Squads Dispatched 4 | . 4 . . . Investigation 2 | . 2 . . . Extermination . | . . . . . Reinforcement 2 | . 2 . . . Assault . | . . . . . Garrison . | . . . . . Intercept . | . . . . . Searches Triggered . | . . . . . Construction Impeded . | . . . . . Haulers Reinforced . | . . . . . Active Scanning Responses . | . . . . . Cargo Convoy Interrupts . | . . . . . Stealth | -11 -10 -10 -10 -9 --------- Run | Yrd Mat Min Exi Min Distress Signals 1 | . 1 . . . Communications Jammed . | . . . . . Distress Signals . | . . . . . Times Spotted 55 | . 24 28 . 3 Peak Tracking Total 22 | . 5 22 . 3 Tactical Retreats 2 | . . 2 . . Traps | -11 -10 -10 -10 -9 ------- Run | Yrd Mat Min Exi Min Traps Triggered 4 | . 4 . . . Indirectly . | . . . . . Trap Hack Attempts . | . . . . . Triggered . | . . . . . Disarmed . | . . . . . Reprogrammed . | . . . . . Reused . | . . . . . Traps Extracted . | . . . . . Installed . | . . . . . Triggered . | . . . . . Machines | -11 -10 -10 -10 -9 ---------- Run | Yrd Mat Min Exi Min Machines Disabled 1 | . . 1 . . Max in Single Turn . | . . . . . Machines Repaired . | . . . . . Machines Dismantled . | . . . . . Machines Sabotaged . | . . . . . Overloaded Fab Kills . | . . . . . Hacking | -11 -10 -10 -10 -9 --------- Run | Yrd Mat Min Exi Min Machines Accessed 10 | . 9 . 1 . Terminals 6 | . 6 . . . Fabricators . | . . . . . Repair Stations 1 | . 1 . . . Recycling Units 2 | . 2 . . . Scanalyzers . | . . . . . Garrison Access . | . . . . . Total Hacks 24 | . 20 . 4 . Successful 11 | . 7 . 4 . Failed 13 | . 13 . . . Catastrophic 4 | . 4 . . . Database Lockouts . | . . . . . Manual 4 | . 4 . . . Terminals 14 | . 14 . . . Fabricators . | . . . . . Repair Stations 1 | . 1 . . . Recycling Units 5 | . 5 . . . Scanalyzers . | . . . . . Garrison Access . | . . . . . Terminal Hacks 7 | . 3 . 4 . Record 4 | . . . 4 . Prototype ID Bank 1 | . 1 . . . Emergency Access Points 1 | . 1 . . . Locate Traps 1 | . 1 . . . Fabricator Hacks . | . . . . . Repair Station Hacks . | . . . . . Recycling Unit Hacks 2 | . 2 . . . Retrieve Components 2 | . 2 . . . Scanalyzer . | . . . . . Garrison Access Hacks . | . . . . . Unauthorized Hacks 2 | . 2 . . . Terminals . | . . . . . Fabricators . | . . . . . Repair Stations . | . . . . . Recycling Units 2 | . 2 . . . Tunnel 2 | . 2 . . . Scanalyzers . | . . . . . Garrison Access . | . . . . . Data Cores Recovered . | . . . . . Used . | . . . . . Hacking Detections 8 | . 8 . . . Full Trace Events . | . . . . . Feedback Events . | . . . . . Feedback Blocked . | . . . . . Robot Schematics Acquired . | . . . . . Robots Built . | . . . . . Authchips . | . . . . . Time . | . . . . . Total Robot Build Rating . | . . . . . Part Schematics Acquired . | . . . . . Parts Built . | . . . . . Authchips . | . . . . . Time . | . . . . . Total Part Build Rating . | . . . . . Parts Repaired . | . . . . . Time . | . . . . . Parts Recycled . | . . . . . Recycled Matter . | . . . . . Retrieved Matter . | . . . . . Retrieved Components 19 | . 19 . . . Parts Scanalyzed . | . . . . . Part Schematics Acquired . | . . . . . Parts Damaged . | . . . . . Bothacking | -11 -10 -10 -10 -9 ------------ Run | Yrd Mat Min Exi Min Used RIF Installer . | . . . . . Robots Hacked 6 | . . . 6 . Non-combat 3 | . . . 3 . Combat 3 | . . . 3 . Robot Hacks Applied 7 | . . . 7 . parse_system 7 | . . . 7 . Relay Couplers Released . | . . . . . Fabnet Peak Effective % . | . . . . . Robots Rewired . | . . . . . Allies Hacked . | . . . . . Hacks Repelled . | . . . . . Allies | -11 -10 -10 -10 -9 -------- Run | Yrd Mat Min Exi Min Total Allies 5 | . . 5 . . Largest Group 3 | . . 3 2 . Highest-Rated Group 41 | . . 41 41 . Highest-Rated Ally 31 | . . 31 31 . Total Orders . | . . . . . Ally Attacks 12 | . . 12 . . Total Damage 149 | . . 149 . . Kills 3 | . . 3 . . Allies Corrupted . | . . . . . Allies Melted . | . . . . . Intel | -11 -10 -10 -10 -9 ------- Run | Yrd Mat Min Exi Min Robot Analysis Total . | . . . . . Derelict Logs Recovered 1 | . . 1 . . Drone Launches . | . . . . . Drone Recoveries . | . . . . . Exploration | -11 -10 -10 -10 -9 ------------- Run | Yrd Mat Min Exi Min Turns Passed 2948 | 68 1549 599 726 6 Spaces Moved 1665 | 48 848 327 442 . Core 3 | 3 . . . . Treads 1493 | . 724 327 442 . Legs 169 | 45 124 . . . Wheels . | . . . . . Hover . | . . . . . Flight . | . . . . . Fastest Speed 50 | 50 120 160 160 . Average Speed 156 | 117 154 160 160 . Slowest Speed 190 | 120 190 160 160 . Overloaded Moves . | . . . . . Propulsion Burnouts . | . . . . . Robots Hopped . | . . . . . Cave-ins Triggered . | . . . . . Exploration Rate (%) 52 | 4 99 68 87 5 Regions Visited 4 Branch Regions 3 Pre-discovered Areas 3 | . 2 . 1 . Known Exits Taken . | . . . . . Unknown Exits Taken 4 | 1 1 1 1 . Scrap Searched . | . . . . . Spaces Dug . | . . . . . Terrain Destroyed 45 | . 11 34 . . Melee . | . . . . . Projectile . | . . . . . AOE 45 | . 11 34 . . Terrain Rammed . | . . . . . Walls Destroyed . | . . . . . Machines Disabled . | . . . . . Actions | -11 -10 -10 -10 -9 --------- Run | Yrd Mat Min Exi Min Total 1896 | 56 1003 378 456 3 Wait 77 | . 43 34 . . Move 1661 | 47 847 326 441 . Hop . | . . . . . Pick Up 24 | 3 21 . . . Fast Attach 14 | 6 8 . . . Attach 4 | . 2 1 1 . Detach 9 | . 8 . 1 . Swap 13 | . 8 2 3 . Drop 19 | . 18 . 1 . Fire 66 | . 48 15 . 3 Melee 8 | . . . 8 . Ram . | . . . . . Kick . | . . . . . Crush . | . . . . . Escape Stasis . | . . . . . Rewire 1 | . . . 1 . Trap . | . . . . . Miscellaneous . | . . . . . Route ------- -11/Scrapyard -10/Materials (discovered 5 exits: [*Mat x3] / [*Min] / [*Sub]) -10/Mines (discovered 2 exits: [*Mat] / *Exi) -10/Exiles (discovered 2 exits: [*Min x2]) -9/Mines History --------- Turn | Location | Event 8 | -11/Scrapyard | Discovered new exit (range 16) 69 | -11/Scrapyard | Entered Materials 329 | -10/Materials | Build established: Mutant 644 | -10/Materials | Discovered new exit (range 4) 927 | -10/Materials | Discovered new exit (range 16) 1031 | -10/Materials | Discovered new exit (range 6) 1395 | -10/Materials | Discovered new exit (range 16) 1610 | -10/Materials | Discovered new exit (range 10) 1618 | -10/Materials | Entered Mines 1652 | -10/Mines | Assisted by bots powering up and referring to "LRC-V3" 1692 | -10/Mines | Discovered new exit (range 11) 1740 | -10/Mines | Assembled infested the area 1758 | -10/Mines | Core integrity fell below 50% 1771 | -10/Mines | Core integrity fell below 20% 1782 | -10/Mines | Lost 3 allies 1799 | -10/Mines | Destroyed 19 combat bots 2141 | -10/Mines | Deemed a non-threat by the Exiles lab entrance 2141 | -10/Mines | Discovered new exit (range 5) 2217 | -10/Mines | Entered Exiles 2217 | -10/Exiles | Accompanied by 2 allies 2238 | -10/Exiles | Discovered new exit (range 15) 2247 | -10/Exiles | Led the pair of lost Derelicts to a safe place 2257 | -10/Exiles | Met 8R-AWN 2290 | -10/Exiles | Met EX-HEX 2407 | -10/Exiles | Met EX-BIN 2497 | -10/Exiles | Met EX-DEC 2516 | -10/Exiles | Learned location of Zion (-7) 2581 | -10/Exiles | Visited The Gauntlet 2926 | -10/Exiles | Discovered new exit (range 11) 2943 | -10/Exiles | Entered Mines 2949 | -9/Mines | Destroyed by S-10 Pest with Light Assault Rifle Last Messages --------------- 02738_ OQB EVO:FHG &V 02790_ System corrupted: Heat flow error (+259). 02791_ Sneak attack on EX-BIN. 02791_ Jacked EX-BIN... >>parse_system Reading system data... 02825_ System corrupted: Heat Sink fused. 02841_ System corrupted: Energy discharge (-103). 02869_ System corrupted: Matter fused (-7). 02893_ Dropped Lrg. Storage Unit. 02897_ Extracted 54 matter. 02926_ EXIT=FOUND LOCATION=UNKNOWN GOAL=ESCAPE 02943_ S-10 Pest destroyed. 02944_ Beam Cannon destroyed. 02946_ System corrupted: Component data lost. 02946_ Lgt. Ion Engine melted. 02946_ S-10 Pest destroyed. [Achievement: Overachiever] Map ----- +----------------------------------------------------+ | ????????????????????????????????? | | ????????????????????????????????? | | ????????????????????????????????? | | ????????????????????????????????? | | ????????????????????????????????? | | ????????????????????????????????? | | ????????????????????????????????? | | ????????????????????????????????? | | ????????????????????????????????? | | ????????????????????????????????? | | ????????????????????????????????? | | ?????????????????????#??????????? | | ??????????????????? ??????????? | | ??????????????????? #?????????? | | ???????????????????? #????????? | | ???????????????????? #???????? | | ????????????????????? #??????? | | ????????????????????? #?????? | | ?????????????????????? #?????? | | ?????????????????????? #?????? | | ??????????????????????? #?????? | | ??????????????????????? #?????? | | ???????????????????????# #?????? | | ???????????????????????# #?????? | | ???????????????????##### ###???? | | ???????????????????# s@ #???? | | ???????????????????# s%[% #???? | | ???????????????????# = #???? | | ???????????????????# #???? | | ???????????????????# """ #???? | | ???????????????????# """ #???? | | ???????????????????# """ #???? | | ???????????????????# #???? | | ???????????????????##########???? | | ????????????????????????????????? | | ????????????????????????????????? | | ????????????????????????????????? | | ????????????????????????????????? | | ????????????????????????????????? | | ????????????????????????????????? | | | | | | | | | | | | | | | | | | | | | +----------------------------------------------------+ Best States ------------- Heat Dissipation 35 Energy Generation 12 Energy Capacity 265 Matter Stores 300 Matter Capacity 300 Sight Range 16 Terrain Scan Density 10 Evasion (%) 55 Recoil Reduction 2 Item Schematics ----------------- None Robot Schematics ------------------ None Fabricated ------------ Nothing Alien Tech Used ----------------- None Achievements -------------- Exterminator Overachiever Challenges ------------ None Game ------ Seed MolecularMyomerNukerbomber Manual? 0 Play Time 00:38:13 Cumulative 178.2 hours Start 2024.07.30 @ 23:20:02 End 2024.07.31 @ 00:11:38 Sessions 1 Manual Loads 0 Difficulty Rogue Special Mode None Game No. 58 Rogue 58 Adventurer 0 Explorer 0 Win Type - Total 1 Types 1/0/0/0/0/0/0/0/0 Lore% 58 Gallery% 66 Achievement% 50 Wizard Run 0 Options --------- Layout 0 ASCII 0 Keyboard 1 Movement Numpad Keybinds 0 Fullscreen 1 Font 18/X11Bold Map View 76x50 Zoom Use 0% Tactical HUD 1 Map Filters NONE Filters NONE Steam 1 RUN: 9f05220e-bd29-4f41-8954-b74d4ffd3b87